Workbook

Sheet Start
B1: OM DEN HÄR MALLEN
B2: Använd den här arbetsboken för en evenemangsbudget för att spåra utgifter och intäkter från ett evenemang.
B3: Fyll i evenemangets namn och ange information i tabeller i kalkylbladet Utgifter och kalkylbladet Intäkter.
B4: Summa utgifter och summa intäkter beräknas automatiskt.
B5: Sammanfattning av vinst och förlust och diagrammet uppdateras automatiskt i kalkylbladet Sammanfattning vinst – förlust.
B6: Obs!
B7: Ytterligare anvisningar finns i kolumn A i varje kalkylblad. Den här texten har avsiktligt dolts. Om du vill ta bort texten markerar du kolumn A och väljer sedan TA BORT. Om du vill att texten ska visas markerar du kolumn A och ändrar sedan teckenfärg.
B8: Om du vill läsa mer om tabeller trycker du på SKIFT och sedan på F10 i en tabell. Välj alternativet TABELL och sedan ALTERNATIV TEXT.

Sheet Utgifter
A1: Ange beräknade och faktiska utgifter för varje kategori i respektive tabell i det här kalkylbladet. Anpassa rubriken för det här och andra kalkylblad genom att ange evenemangets namn i cell D1. Kalkylbladets underrubrik finns i cell H1. Anvisningar för hur du använder det här kalkylbladet finns i cellerna i den här kolumnen. Fler anvisningar finns i cell A3. | B1: Evenemangsbudget för evenemangets namn | H1: UTGIFTER
A3: Etiketten Summa utgifter finns i cellen till höger, etiketten Beräknad i cell G3 och Faktisk i H3. | B3: SUMMA UTGIFTER | G3: Beräknad | H3: Faktisk
A4: Summa beräknade utgifter finns i cell G4. Summa faktiska utgifter beräknas automatiskt i H4. Fler anvisningar finns i cell A6. | G4: =SUM(C11,C19,C25,C32,G11,G19,G24) -> 882.00 kr | H4: =SUM(D11,D19,D25,D32,H11,H19,H24) -> 333.00 kr
A6: Ange utgifter för lokal i tabellen som börjar i cellen till höger och utgifter för förfriskningar i tabellen som börjar i cell F6. Fler anvisningar finns i cell A13. | B6: Lokal | C6: Beräknad | D6: Faktisk | F6: Förfriskningar | G6: Beräknad | H6: Faktisk
B7: Avgifter för rum och sal | C7: 500.00 kr | F7: Mat
B8: Personal på plats | F8: Dryck | G8: 20.00 kr
B9: Utrustning | F9: Linne | H9: 20.00 kr
B10: Bord och stolar | F10: Personal och serviceavgifter
B11: Summa | C11: =SUBTOTAL(109,UtgifterFörLokal[Beräknad]) -> 500.00 kr | D11: =SUBTOTAL(109,UtgifterFörLokal[Faktisk]) -> 0.00 kr | F11: Summa | G11: =SUBTOTAL(109,UtgifterFörFörfriskningar[Beräknad]) -> 20.00 kr | H11: =SUBTOTAL(109,UtgifterFörFörfriskningar[Faktisk]) -> 20.00 kr
A13: Ange utgifter för dekorationer i tabellen som börjar i cellen till höger och utgifter för program i tabellen som börjar i cell F13. Fler anvisningar finns i cell A21. | B13: Dekorationer | C13: Beräknad | D13: Faktisk | F13: Program | G13: Beräknad | H13: Faktisk
B14: Blommor | C14: 200.00 kr | D14: 300.00 kr | F14: Artister
B15: Ljus | F15: Talare | G15: 30.00 kr
B16: Belysning | F16: Resor
B17: Ballonger | F17: Hotell
B18: Pappersmaterial | F18: Övrigt
B19: Summa | C19: =SUBTOTAL(109,UtgifterFörDekorationer[Beräknad]) -> 200.00 kr | D19: =SUBTOTAL(109,UtgifterFörDekorationer[Faktisk]) -> 300.00 kr | F19: Summa | G19: =SUBTOTAL(109,UtgifterFörProgram[Beräknad]) -> 30.00 kr | H19: =SUBTOTAL(109,UtgifterFörProgram[Faktisk]) -> 0.00 kr
A21: Ange utgifter för reklam i tabellen som börjar i cellen till höger och utgifter för priser i tabellen som börjar i cell F21. Fler anvisningar finns i cell A27. | B21: Reklam | C21: Beräknad | D21: Faktisk | F21: Priser | G21: Beräknad | H21: Faktisk
B22: Grafik | F22: Band/plaketter/troféer
B23: Fotokopiering/utskrifter | C23: 20.00 kr | F23: Gåvor | G23: 100.00 kr
B24: Porto | F24: Summa | G24: =SUBTOTAL(109,UtgifterFörPriser[Beräknad]) -> 100.00 kr | H24: =SUBTOTAL(109,UtgifterFörPriser[Faktisk]) -> 0.00 kr
B25: Summa | C25: =SUBTOTAL(109,UtgifterFörReklam[Beräknad]) -> 20.00 kr | D25: =SUBTOTAL(109,UtgifterFörReklam[Faktisk]) -> 0.00 kr
A27: Ange övriga utgifter i tabellen som börjar i cellen till höger. | B27: Övrigt | C27: Beräknad | D27: Faktisk
B28: Telefon | D28: 13.00 kr
B29: Transport | C29: 12.00 kr
B30: Kontorsmaterial
B31: Faxtjänster
B32: Summa | C32: =SUBTOTAL(109,ÖvrigaUtgifter[Beräknad]) -> 12.00 kr | D32: =SUBTOTAL(109,ÖvrigaUtgifter[Faktisk]) -> 13.00 kr

Sheet Intäkter
A1: Ange beräknad och faktisk intäkter för varje kategori i respektive tabell i det här kalkylbladet. Rubriken för det här kalkylbladet uppdateras automatiskt i cellen till höger. Cell G1 innehåller underrubriken. Anvisningar för hur du använder det här kalkylbladet finns i cellerna i den här kolumnen. Fler anvisningar finns i cell A3. | B1: =Utgifter!B1 -> Evenemangsbudget för evenemangets namn | G1: INTÄKTER
A3: Etiketten Summa intäkter finns i cellen till höger, etiketten Beräknad i cell F3 och Faktisk i G3. | B3: SUMMA INTÄKTER | F3: Beräknad | G3: Faktisk
A4: Summa beräknade intäkter beräknas automatiskt i cell F4 och summa faktiska intäkter i G4. | F4: =SUM(Inträde[[#Totals],[Beräknade intäkter]],ReklamIProgrammet[[#Totals],[Beräknade intäkter]],UtställareOchFörsäljare[[#Totals],[Beräknade intäkter]],SåldaProdukter[[#Totals],[Beräknade intäkter]]) -> 1,936.00 kr | G4: =SUM(Inträde[[#Totals],[Faktiska intäkter]],ReklamIProgrammet[[#Totals],[Faktiska intäkter]],UtställareOchFörsäljare[[#Totals],[Faktiska intäkter]],SåldaProdukter[[#Totals],[Faktiska intäkter]]) -> 1,831.00 kr
A5: Etiketten Inträde finns i cellen till höger. | B5: INTRÄDE
A6: Ange beräknat och faktiskt inträdesantal med biljettpriser i tabellen som börjar i cellen till höger. Beräknade och faktiska intäkter från inträde beräknas automatiskt. Fler anvisningar finns i cell A11. | B6: Beräknat antal | C6: Faktiskt antal | D6: Typ | E6: Pris | F6: Beräknade intäkter | G6: Faktiska intäkter
B7: 300 | C7: 278 | D7: Vuxna à | E7: 5.00 kr | F7: =B7*E7 -> 1,500.00 kr | G7: =C7*E7 -> 1,390.00 kr
B8: 197 | C8: 195 | D8: Barn à | E8: 2.00 kr | F8: =B8*E8 -> 394.00 kr | G8: =C8*E8 -> 390.00 kr
B9: 42 | C9: 51 | D9: Övriga à | E9: 1.00 kr | F9: =B9*E9 -> 42.00 kr | G9: =C9*E9 -> 51.00 kr
B10: Summa | F10: =SUBTOTAL(109,Inträde[Beräknade intäkter]) -> 1,936.00 kr | G10: =SUBTOTAL(109,Inträde[Faktiska intäkter]) -> 1,831.00 kr
A11: Etiketten Reklam i programmet finns i cellen till höger. | B11: REKLAM I PROGRAMMET
A12: Ange beräknat och faktiskt reklamantal och reklampris i tabellen som börjar i cellen till höger. Beräknade och faktiska intäkter från reklam beräknas automatiskt. Fler anvisningar finns i cell A17. | B12: Beräknat antal | C12: Faktiskt antal | D12: Typ | E12: Pris | F12: Beräknade intäkter | G12: Faktiska intäkter
B13: 12 | D13: Omslag à | F13: =B13*E13 -> 0.00 kr | G13: =C13*E13 -> 0.00 kr
C14: 158 | D14: A5 à | F14: =B14*E14 -> 0.00 kr | G14: =C14*E14 -> 0.00 kr
B15: 4 | D15: A6 à | F15: =B15*E15 -> 0.00 kr | G15: =C15*E15 -> 0.00 kr
B16: Summa | F16: =SUBTOTAL(109,ReklamIProgrammet[Beräknade intäkter]) -> 0.00 kr | G16: =SUBTOTAL(109,ReklamIProgrammet[Faktiska intäkter]) -> 0.00 kr
A17: Etiketten Utställare och försäljare finns i cellen till höger. | B17: UTSTÄLLARE/FÖRSÄLJARE
A18: Ange beräknat och faktiskt antal utställare och försäljare samt monterpris i tabellen som börjar i cellen till höger. Beräknade och faktiska intäkter beräknas automatiskt. Fler anvisningar finns i cell A23. | B18: Beräknat antal | C18: Faktiskt antal | D18: Typ | E18: Pris | F18: Beräknade intäkter | G18: Faktiska intäkter
B19: 23 | D19: Stora montrar à | F19: =B19*E19 -> 0.00 kr | G19: =C19*E19 -> 0.00 kr
B20: 354 | D20: Mellanstora montrar à | F20: =B20*E20 -> 0.00 kr | G20: =C20*E20 -> 0.00 kr
B21: 56 | D21: Små montrar à | F21: =B21*E21 -> 0.00 kr | G21: =C21*E21 -> 0.00 kr
B22: Summa | F22: =SUBTOTAL(109,UtställareOchFörsäljare[Beräknade intäkter]) -> 0.00 kr | G22: =SUBTOTAL(109,UtställareOchFörsäljare[Faktiska intäkter]) -> 0.00 kr
A23: Etiketten Sålda produkter finns i cellen till höger. | B23: SÅLDA PRODUKTER
A24: Ange beräknat och faktiskt antal sålda produkter och produktpris i tabellen som börjar i cellen till höger. Beräknade och faktiska intäkter beräknas automatiskt. | B24: Beräknat antal | C24: Faktiskt antal | D24: Typ | E24: Pris | F24: Beräknade intäkter | G24: Faktiska intäkter
D25: Produkter à | F25: =B25*E25 -> 0.00 kr | G25: =C25*E25 -> 0.00 kr
B26: 123 | D26: Produkter à | F26: =B26*E26 -> 0.00 kr | G26: =C26*E26 -> 0.00 kr
D27: Produkter à | F27: =B27*E27 -> 0.00 kr | G27: =C27*E27 -> 0.00 kr
B28: 13 | D28: Produkter à | F28: =B28*E28 -> 0.00 kr | G28: =C28*E28 -> 0.00 kr
B29: Summa | F29: =SUBTOTAL(109,SåldaProdukter[Beräknade intäkter]) -> 0.00 kr | G29: =SUBTOTAL(109,SåldaProdukter[Faktiska intäkter]) -> 0.00 kr

Sheet Sammanfattning vinst – förlust
A1: Sammanfattning av vinst och förlust och diagrammet som visar summa intäkter och utgifter uppdateras automatiskt i det här kalkylbladet. Rubriken för det här kalkylbladet uppdateras automatiskt i cellen till höger. Cell G1 och G2 innehåller underrubriken. Anvisningar för hur du använder det här kalkylbladet finns i cellerna i den här kolumnen. Fler anvisningar finns i cell A3. | B1: =Utgifter!B1 -> Evenemangsbudget för evenemangets namn | G1: VINST
G2: och förlust – sammanfattning
A3: Stapeldiagram med en jämförelse av beräknade intäkter och utgifter och faktiska intäkter och utgifter finns i cell E3. | E3: Stapeldiagram som visar en jämförelse av beräknade intäkter och utgifter och faktiska intäkter och utgifter finns i den här cellen.
A4: Sammanfattningstabellen som börjar i cellen till höger uppdateras automatiskt. Fler anvisningar finns i cell A8. | B4: Summa | C4: Beräknad | D4: Faktisk
B5: Summa intäkter | C5: =Intäkter!F4 -> 1,936.00 kr | D5: =Intäkter!G4 -> 1,831.00 kr
B6: Summa utgifter | C6: =Utgifter!G4 -> 882.00 kr | D6: =Utgifter!H4 -> 333.00 kr
A8: Beräknad summa vinst eller förlust beräknas automatiskt i cell C8 och faktiskt summa vinst eller förlust i cell D8. | B8: Summa vinst (eller förlust) | C8: =C5-C6 -> 1,054.00 kr | D8: =D5-D6 -> 1,498.00 kr
